[Event "Early-Titled-Tuesday-Blitz-April-02-2024"]
[Site "Chess.com"]
[Date "2024.04.02"]
[Round "4"]
[White "joksijoksi"]
[Black "JCVanDamme10"]
[Result "1-0"]
[WhiteElo "2532"]
[BlackElo "2338"]
[TimeControl "180+1"]
[EndTime "8:38:58 PDT"]
[Termination "joksijoksi won on time"]

1. c4 {[%clk 0:02:59.6]} 1... c6 {[%clk 0:02:59.8]} 2. Nf3 {[%clk 0:02:53.1]}
2... d5 {[%clk 0:02:59.7]} 3. d4 {[%clk 0:02:53.3]} 3... Nf6 {[%clk 0:02:59]} 4.
cxd5 {[%clk 0:02:53.3]} 4... cxd5 {[%clk 0:02:58.4]} 5. Nc3 {[%clk 0:02:54]}
5... Nc6 {[%clk 0:02:58.6]} 6. Bf4 {[%clk 0:02:54.5]} 6... a6 {[%clk 0:02:52.1]}
7. e3 {[%clk 0:02:54.7]} 7... Bf5 {[%clk 0:02:51]} 8. Be2 {[%clk 0:02:54]} 8...
e6 {[%clk 0:02:50.6]} 9. h3 {[%clk 0:02:54.4]} 9... h6 {[%clk 0:02:50]} 10. O-O
{[%clk 0:02:54.3]} 10... Bd6 {[%clk 0:02:48.4]} 11. Ne5 {[%clk 0:02:54.7]} 11...
Bxe5 {[%clk 0:02:46.2]} 12. dxe5 {[%clk 0:02:55.6]} 12... Nd7 {[%clk 0:02:46.1]}
13. Bg4 {[%clk 0:02:49.1]} 13... Bxg4 {[%clk 0:02:33.5]} 14. Qxg4 {[%clk
0:02:50]} 14... g5 {[%clk 0:02:33.7]} 15. Bh2 {[%clk 0:02:40.5]} 15... Ndxe5
{[%clk 0:02:29.8]} 16. Qa4 {[%clk 0:02:40.9]} 16... b5 {[%clk 0:02:27.3]} 17.
Qc2 {[%clk 0:02:24.6]} 17... Nc4 {[%clk 0:02:16.6]} 18. b3 {[%clk 0:02:19.7]}
18... Nb4 {[%clk 0:02:14.7]} 19. Qe2 {[%clk 0:02:10.8]} 19... Nd6 {[%clk
0:02:07]} 20. a3 {[%clk 0:02:07.8]} 20... Nc6 {[%clk 0:02:04.9]} 21. Rfc1 {[%clk
0:01:58.5]} 21... Rc8 {[%clk 0:01:58.5]} 22. Qb2 {[%clk 0:01:55.1]} 22... O-O
{[%clk 0:01:56]} 23. Ne2 {[%clk 0:01:47.2]} 23... Ne4 {[%clk 0:01:46.9]} 24. Nd4
{[%clk 0:01:46]} 24... Nxd4 {[%clk 0:01:45.8]} 25. Qxd4 {[%clk 0:01:46.9]} 25...
Qe7 {[%clk 0:01:35.4]} 26. f3 {[%clk 0:01:44.3]} 26... Nd6 {[%clk 0:01:21.6]}
27. g4 {[%clk 0:01:37.4]} 27... Rxc1+ {[%clk 0:01:11.8]} 28. Rxc1 {[%clk
0:01:38.3]} 28... Rc8 {[%clk 0:01:10.9]} 29. Rc5 {[%clk 0:01:31.9]} 29... Rxc5
{[%clk 0:00:13.5]} 30. Qxc5 {[%clk 0:01:32.8]} 30... Nf5 {[%clk 0:00:14]} 31.
Qc8+ {[%clk 0:01:26]} 31... Qf8 {[%clk 0:00:14.3]} 32. Qxa6 {[%clk 0:01:20.2]}
32... Nxe3 {[%clk 0:00:12.5]} 33. Qxb5 {[%clk 0:01:17.5]} 33... Qxa3 {[%clk
0:00:10.6]} 34. Qe8+ {[%clk 0:01:11.9]} 34... Qf8 {[%clk 0:00:08.5]} 35. Qxf8+
{[%clk 0:01:07.4]} 35... Kxf8 {[%clk 0:00:08.1]} 36. Kf2 {[%clk 0:01:08.1]}
36... Nc2 {[%clk 0:00:07.3]} 37. Be5 {[%clk 0:01:03.8]} 37... Ke7 {[%clk
0:00:04.9]} 38. Bg7 {[%clk 0:01:03.9]} 38... f6 {[%clk 0:00:04.3]} 39. Bxh6
{[%clk 0:00:54.6]} 39... Nd4 {[%clk 0:00:04.1]} 40. b4 {[%clk 0:00:51.7]} 40...
Nb5 {[%clk 0:00:04]} 41. f4 {[%clk 0:00:49.8]} 41... gxf4 {[%clk 0:00:03.8]} 42.
Bxf4 {[%clk 0:00:50.7]} 42... e5 {[%clk 0:00:04]} 43. Bd2 {[%clk 0:00:49.8]}
43... d4 {[%clk 0:00:04.3]} 44. Kf3 {[%clk 0:00:48.4]} 44... Ke6 {[%clk
0:00:04.7]} 45. h4 {[%clk 0:00:47.5]} 45... f5 {[%clk 0:00:03.3]} 46. g5 {[%clk
0:00:47.2]} 46... e4+ {[%clk 0:00:02.6]} 47. Ke2 {[%clk 0:00:43.2]} 47... Kf7
{[%clk 0:00:01.3]} 48. h5 {[%clk 0:00:42]} 48... Kg7 {[%clk 0:00:01.4]} 49. g6
{[%clk 0:00:41.3]} 1-0

[Event "Early-Titled-Tuesday-Blitz-April-02-2024"]
[Site "Chess.com"]
[Date "2024.04.02"]
[Round "4"]
[White "Kratos031"]
[Black "HanSchut"]
[Result "1/2-1/2"]
[WhiteElo "2497"]
[BlackElo "2260"]
[TimeControl "180+1"]
[EndTime "8:38:58 PDT"]
[Termination "Game drawn by repetition"]

1. d4 {[%clk 0:03:00.9]} 1... Nf6 {[%clk 0:02:58.7]} 2. c4 {[%clk 0:03:00.7]}
2... g6 {[%clk 0:02:59.1]} 3. Nc3 {[%clk 0:03:01.2]} 3... d5 {[%clk 0:02:59.6]}
4. Bf4 {[%clk 0:02:59.4]} 4... Bg7 {[%clk 0:02:59]} 5. Nf3 {[%clk 0:02:59.7]}
5... O-O {[%clk 0:02:58.8]} 6. e3 {[%clk 0:02:59.9]} 6... c5 {[%clk 0:02:59.5]}
7. Rc1 {[%clk 0:02:50.6]} 7... cxd4 {[%clk 0:02:56.3]} 8. exd4 {[%clk
0:02:50.5]} 8... Nc6 {[%clk 0:02:56.2]} 9. Be2 {[%clk 0:02:50.7]} 9... a6 {[%clk
0:02:45.9]} 10. O-O {[%clk 0:02:48.4]} 10... dxc4 {[%clk 0:02:45.5]} 11. Bxc4
{[%clk 0:02:47.2]} 11... Bg4 {[%clk 0:02:45.3]} 12. Be3 {[%clk 0:02:45]} 12...
Rc8 {[%clk 0:02:38.4]} 13. Be2 {[%clk 0:02:40.7]} 13... Nd5 {[%clk 0:02:37.8]}
14. h3 {[%clk 0:02:34.9]} 14... Bxf3 {[%clk 0:02:19.9]} 15. Bxf3 {[%clk
0:02:31]} 15... Nxe3 {[%clk 0:02:20.3]} 16. fxe3 {[%clk 0:02:30.5]} 16... Bh6
{[%clk 0:02:15.1]} 17. Re1 {[%clk 0:02:09.7]} 17... e6 {[%clk 0:01:56.4]} 18. a3
{[%clk 0:01:14.1]} 18... Qh4 {[%clk 0:01:41.1]} 19. Ne4 {[%clk 0:01:06.2]} 19...
Rfd8 {[%clk 0:01:07.8]} 20. Rc3 {[%clk 0:00:35.9]} 20... Bg7 {[%clk 0:00:35.3]}
21. Rd3 {[%clk 0:00:31.2]} 21... Ne7 {[%clk 0:00:19.7]} 22. Nc5 {[%clk 0:00:25]}
22... Nf5 {[%clk 0:00:11.9]} 23. Nxb7 {[%clk 0:00:21.2]} 23... Rd7 {[%clk
0:00:10.2]} 24. Nc5 {[%clk 0:00:21.1]} 24... Rdd8 {[%clk 0:00:09.9]} 25. Re2
{[%clk 0:00:20.3]} 25... Qg3 {[%clk 0:00:09.7]} 26. Qe1 {[%clk 0:00:20.2]} 26...
Qxe1+ {[%clk 0:00:07.4]} 27. Rxe1 {[%clk 0:00:21.1]} 27... Rxc5 {[%clk
0:00:04.6]} 28. Rb3 {[%clk 0:00:16.8]} 28... Rc7 {[%clk 0:00:04.7]} 29. Rb6
{[%clk 0:00:16.6]} 29... Rc2 {[%clk 0:00:03.1]} 30. b4 {[%clk 0:00:15.6]} 30...
Nxd4 {[%clk 0:00:03.2]} 31. Rxa6 {[%clk 0:00:13.9]} 31... Nxf3+ {[%clk
0:00:02.3]} 32. gxf3 {[%clk 0:00:14.8]} 32... Rdd2 {[%clk 0:00:02.6]} 33. Ra8+
{[%clk 0:00:13.2]} 33... Bf8 {[%clk 0:00:01.8]} 34. b5 {[%clk 0:00:14.1]} 34...
Kg7 {[%clk 0:00:01.7]} 35. b6 {[%clk 0:00:14.2]} 35... Rg2+ {[%clk 0:00:02.3]}
36. Kh1 {[%clk 0:00:13.5]} 36... Rh2+ {[%clk 0:00:03]} 37. Kg1 {[%clk
0:00:14.1]} 37... Rcg2+ {[%clk 0:00:03.4]} 38. Kf1 {[%clk 0:00:14.4]} 38... Rf2+
{[%clk 0:00:03.8]} 39. Kg1 {[%clk 0:00:14.9]} 39... Rfg2+ {[%clk 0:00:02.7]} 40.
Kf1 {[%clk 0:00:15]} 40... Rf2+ {[%clk 0:00:03.6]} 41. Kg1 {[%clk 0:00:15.5]}
41... Rfg2+ {[%clk 0:00:04.4]} 1/2-1/2

[Event "Early-Titled-Tuesday-Blitz-April-02-2024"]
[Site "Chess.com"]
[Date "2024.04.02"]
[Round "4"]
[White "SlavenPastar"]
[Black "atalz0"]
[Result "0-1"]
[WhiteElo "2546"]
[BlackElo "2381"]
[TimeControl "180+1"]
[EndTime "8:38:59 PDT"]
[Termination "atalz0 won by resignation"]

1. Nf3 {[%clk 0:03:00.9]} 1... Nf6 {[%clk 0:02:59.5]} 2. g3 {[%clk 0:03:01.3]}
2... b5 {[%clk 0:02:59.2]} 3. Bg2 {[%clk 0:02:59.7]} 3... Bb7 {[%clk 0:02:59.7]}
4. Na3 {[%clk 0:03:00.2]} 4... b4 {[%clk 0:02:59]} 5. Nc4 {[%clk 0:03:00]} 5...
a5 {[%clk 0:02:59.6]} 6. O-O {[%clk 0:02:55.9]} 6... e6 {[%clk 0:02:59.9]} 7. b3
{[%clk 0:02:53.3]} 7... Be7 {[%clk 0:02:59.6]} 8. a3 {[%clk 0:02:52.2]} 8... O-O
{[%clk 0:02:58.5]} 9. Bb2 {[%clk 0:02:50.9]} 9... d5 {[%clk 0:02:55.1]} 10. Nce5
{[%clk 0:02:50.4]} 10... c5 {[%clk 0:02:54.6]} 11. axb4 {[%clk 0:02:48.5]} 11...
axb4 {[%clk 0:02:55.5]} 12. Rxa8 {[%clk 0:02:45.6]} 12... Bxa8 {[%clk
0:02:56.4]} 13. Qa1 {[%clk 0:02:45.6]} 13... Nc6 {[%clk 0:02:55.5]} 14. Nxc6
{[%clk 0:02:26.9]} 14... Bxc6 {[%clk 0:02:56.4]} 15. Ne5 {[%clk 0:02:27.4]}
15... Bb5 {[%clk 0:02:45.3]} 16. d3 {[%clk 0:02:23]} 16... Qa8 {[%clk
0:02:36.6]} 17. h3 {[%clk 0:02:15.3]} 17... Rd8 {[%clk 0:02:24.2]} 18. g4 {[%clk
0:02:07.5]} 18... Bf8 {[%clk 0:02:03.3]} 19. f4 {[%clk 0:01:55]} 19... Nd7
{[%clk 0:01:34.5]} 20. Nxd7 {[%clk 0:01:47.9]} 20... Bxd7 {[%clk 0:01:35.4]} 21.
f5 {[%clk 0:01:46.3]} 21... Qxa1 {[%clk 0:01:23.9]} 22. Rxa1 {[%clk 0:01:45]}
22... exf5 {[%clk 0:01:18.7]} 23. Bxd5 {[%clk 0:01:42.7]} 23... fxg4 {[%clk
0:01:15.4]} 24. hxg4 {[%clk 0:01:38.9]} 24... Bxg4 {[%clk 0:01:13.5]} 25. e4
{[%clk 0:01:39.1]} 25... Be6 {[%clk 0:01:04.9]} 26. Bxe6 {[%clk 0:01:38.2]}
26... fxe6 {[%clk 0:01:05.8]} 27. Ra7 {[%clk 0:01:37.6]} 27... c4 {[%clk
0:00:46.4]} 28. Kf1 {[%clk 0:01:04.1]} 28... cxd3 {[%clk 0:00:38.8]} 29. cxd3
{[%clk 0:01:03.2]} 29... Rxd3 {[%clk 0:00:38.8]} 30. Ke2 {[%clk 0:00:59.9]}
30... Rxb3 {[%clk 0:00:38.5]} 31. Be5 {[%clk 0:00:59.9]} 31... Ra3 {[%clk
0:00:21.7]} 32. Rb7 {[%clk 0:00:58.2]} 32... Ra5 {[%clk 0:00:17.1]} 33. Bc7
{[%clk 0:00:45.8]} 33... Rh5 {[%clk 0:00:13.3]} 34. e5 {[%clk 0:00:41.1]} 34...
h6 {[%clk 0:00:10.6]} 35. Kf3 {[%clk 0:00:32]} 35... Rf5+ {[%clk 0:00:10]} 36.
Ke4 {[%clk 0:00:31.7]} 36... Rf7 {[%clk 0:00:10.7]} 37. Kd4 {[%clk 0:00:23.9]}
37... g5 {[%clk 0:00:10.8]} 38. Kc4 {[%clk 0:00:23.2]} 38... g4 {[%clk
0:00:11.2]} 39. Kb5 {[%clk 0:00:21.6]} 39... g3 {[%clk 0:00:11.6]} 40. Kc6
{[%clk 0:00:16.9]} 40... g2 {[%clk 0:00:11.9]} 41. Bb6 {[%clk 0:00:17.3]} 41...
Rxb7 {[%clk 0:00:11.7]} 42. Kxb7 {[%clk 0:00:18.2]} 42... b3 {[%clk 0:00:11.2]}
0-1

[Event "Early-Titled-Tuesday-Blitz-April-02-2024"]
[Site "Chess.com"]
[Date "2024.04.02"]
[Round "4"]
[White "Onischuk_V"]
[Black "GOGIEFF"]
[Result "0-1"]
[WhiteElo "2821"]
[BlackElo "3017"]
[TimeControl "180+1"]
[EndTime "8:39:00 PDT"]
[Termination "GOGIEFF won by resignation"]

1. Nf3 {[%clk 0:02:59.9]} 1... d5 {[%clk 0:02:59.7]} 2. g3 {[%clk 0:03:00.5]}
2... c6 {[%clk 0:03:00.1]} 3. Bg2 {[%clk 0:03:01]} 3... Bg4 {[%clk 0:03:00.8]}
4. O-O {[%clk 0:03:00.7]} 4... Nd7 {[%clk 0:03:00.8]} 5. d3 {[%clk 0:03:00.9]}
5... e6 {[%clk 0:03:01.2]} 6. Nbd2 {[%clk 0:03:00.7]} 6... Bd6 {[%clk
0:03:01.2]} 7. h3 {[%clk 0:03:00.5]} 7... Bh5 {[%clk 0:03:00.8]} 8. e4 {[%clk
0:03:00.7]} 8... Ne7 {[%clk 0:03:00.7]} 9. Qe1 {[%clk 0:02:58.6]} 9... a5 {[%clk
0:02:58.8]} 10. Nh2 {[%clk 0:02:57.6]} 10... Qc7 {[%clk 0:02:44.6]} 11. f4
{[%clk 0:02:55.1]} 11... f6 {[%clk 0:02:44.9]} 12. d4 {[%clk 0:02:47]} 12... Qb6
{[%clk 0:02:25]} 13. c3 {[%clk 0:02:42.8]} 13... Bf7 {[%clk 0:02:25.1]} 14. Kh1
{[%clk 0:02:41.1]} 14... O-O {[%clk 0:02:21.3]} 15. e5 {[%clk 0:02:29.3]} 15...
Bc7 {[%clk 0:02:19.9]} 16. Ndf3 {[%clk 0:02:29.2]} 16... fxe5 {[%clk 0:02:01]}
17. dxe5 {[%clk 0:02:19.6]} 17... c5 {[%clk 0:01:58.2]} 18. Be3 {[%clk
0:01:56.2]} 18... Bg6 {[%clk 0:01:45.6]} 19. Qd2 {[%clk 0:01:47.5]} 19... Be4
{[%clk 0:01:42.6]} 20. g4 {[%clk 0:01:42.8]} 20... a4 {[%clk 0:01:17.6]} 21. Ng5
{[%clk 0:01:33.8]} 21... Bxg2+ {[%clk 0:01:14.1]} 22. Qxg2 {[%clk 0:01:33.8]}
22... h6 {[%clk 0:01:13.5]} 23. Ngf3 {[%clk 0:01:33.9]} 23... d4 {[%clk
0:01:07.7]} 24. cxd4 {[%clk 0:01:27.8]} 24... Nd5 {[%clk 0:01:02]} 25. dxc5
{[%clk 0:01:23.8]} 25... Nxc5 {[%clk 0:01:00.8]} 26. Qg1 {[%clk 0:01:18.5]}
26... Nxe3 {[%clk 0:00:57.5]} 27. Qxe3 {[%clk 0:01:18.5]} 27... Qc6 {[%clk
0:00:52.2]} 28. Rac1 {[%clk 0:01:17]} 28... Bb6 {[%clk 0:00:52.5]} 29. Rc4
{[%clk 0:01:01.3]} 29... Qd5 {[%clk 0:00:45.4]} 30. Rb4 {[%clk 0:00:45.1]} 30...
Ba7 {[%clk 0:00:43]} 31. Qe2 {[%clk 0:00:14.3]} 31... Nd3 {[%clk 0:00:28.7]} 32.
Rxa4 {[%clk 0:00:14.5]} 32... Nxf4 {[%clk 0:00:27.6]} 33. Qe4 {[%clk 0:00:13.6]}
33... Qxe4 {[%clk 0:00:25.7]} 34. Rxe4 {[%clk 0:00:12.3]} 34... Nxh3 {[%clk
0:00:26.6]} 35. Ra4 {[%clk 0:00:12.1]} 35... Be3 {[%clk 0:00:21.7]} 36. Rxa8
{[%clk 0:00:11.7]} 36... Rxa8 {[%clk 0:00:22.6]} 37. a3 {[%clk 0:00:11.7]} 37...
Rc8 {[%clk 0:00:19.2]} 38. Kg2 {[%clk 0:00:11.9]} 38... Nf4+ {[%clk 0:00:18.7]}
39. Kg3 {[%clk 0:00:10.2]} 39... Rc2 {[%clk 0:00:19.6]} 40. Ne1 {[%clk
0:00:08.3]} 40... Rxb2 {[%clk 0:00:18.7]} 41. Rxf4 {[%clk 0:00:08.5]} 41...
Bxf4+ {[%clk 0:00:18.5]} 42. Kxf4 {[%clk 0:00:09]} 42... Rxh2 {[%clk 0:00:18.7]}
0-1

[Event "Early-Titled-Tuesday-Blitz-April-02-2024"]
[Site "Chess.com"]
[Date "2024.04.02"]
[Round "4"]
[White "Der_Balak_3Halak"]
[Black "Ordekalog"]
[Result "1-0"]
[WhiteElo "2419"]
[BlackElo "2626"]
[TimeControl "180+1"]
[EndTime "8:39:02 PDT"]
[Termination "Der_Balak_3Halak won on time"]

1. e4 {[%clk 0:03:00.9]} 1... c5 {[%clk 0:02:58.7]} 2. Nf3 {[%clk 0:03:00.5]}
2... Nc6 {[%clk 0:02:58]} 3. Bb5 {[%clk 0:02:57.2]} 3... e5 {[%clk 0:02:56.2]}
4. Nc3 {[%clk 0:02:54.7]} 4... Bd6 {[%clk 0:02:54.7]} 5. Nd5 {[%clk 0:02:53.2]}
5... Nge7 {[%clk 0:02:53.5]} 6. c3 {[%clk 0:02:51.5]} 6... Nxd5 {[%clk
0:02:52.3]} 7. exd5 {[%clk 0:02:52.4]} 7... Ne7 {[%clk 0:02:52.3]} 8. Qe2 {[%clk
0:02:48]} 8... Nxd5 {[%clk 0:02:46.8]} 9. d4 {[%clk 0:02:45.1]} 9... cxd4 {[%clk
0:02:41.4]} 10. cxd4 {[%clk 0:02:46]} 10... Bb4+ {[%clk 0:02:36.7]} 11. Bd2
{[%clk 0:02:41.3]} 11... Bxd2+ {[%clk 0:02:35.8]} 12. Nxd2 {[%clk 0:02:41.4]}
12... O-O {[%clk 0:02:33.5]} 13. dxe5 {[%clk 0:02:39.4]} 13... Qa5 {[%clk
0:02:26.4]} 14. Bc4 {[%clk 0:01:45.6]} 14... Nf4 {[%clk 0:01:57.4]} 15. Qe4
{[%clk 0:01:41.6]} 15... Ng6 {[%clk 0:01:57]} 16. f4 {[%clk 0:01:29.6]} 16... d6
{[%clk 0:01:56.5]} 17. b4 {[%clk 0:01:27.9]} 17... Qb6 {[%clk 0:01:43.8]} 18. a3
{[%clk 0:00:51.4]} 18... dxe5 {[%clk 0:01:29.6]} 19. fxe5 {[%clk 0:00:50.5]}
19... Re8 {[%clk 0:01:21.3]} 20. Nf3 {[%clk 0:00:49.4]} 20... Be6 {[%clk
0:01:07.2]} 21. Bd3 {[%clk 0:00:34.8]} 21... Rad8 {[%clk 0:01:03.4]} 22. Rd1
{[%clk 0:00:33.3]} 22... Rd5 {[%clk 0:00:53.7]} 23. h4 {[%clk 0:00:20.8]} 23...
h5 {[%clk 0:00:28.3]} 24. Ke2 {[%clk 0:00:17.7]} 24... Qd8 {[%clk 0:00:20.4]}
25. Rhe1 {[%clk 0:00:17.3]} 25... Rd7 {[%clk 0:00:13.3]} 26. Bb5 {[%clk
0:00:17.4]} 26... Rxd1 {[%clk 0:00:11.8]} 27. Rxd1 {[%clk 0:00:18.3]} 27... Qe7
{[%clk 0:00:06.8]} 28. Bxe8 {[%clk 0:00:18.5]} 28... Qxe8 {[%clk 0:00:07.5]} 29.
Kf2 {[%clk 0:00:15.1]} 29... Qe7 {[%clk 0:00:06]} 30. Qd4 {[%clk 0:00:14.9]}
30... f6 {[%clk 0:00:04.4]} 31. Qd8+ {[%clk 0:00:15.1]} 31... Qxd8 {[%clk
0:00:03.8]} 32. Rxd8+ {[%clk 0:00:16]} 32... Kf7 {[%clk 0:00:04.4]} 33. Ke3
{[%clk 0:00:15.1]} 33... Ke7 {[%clk 0:00:02]} 34. Rb8 {[%clk 0:00:14.7]} 34...
fxe5 {[%clk 0:00:01.9]} 35. Rxb7+ {[%clk 0:00:14.5]} 35... Kf6 {[%clk
0:00:01.7]} 36. Ng5 {[%clk 0:00:14.1]} 36... Nf4 {[%clk 0:00:02.6]} 37. g3
{[%clk 0:00:12.3]} 37... Nd5+ {[%clk 0:00:02.3]} 38. Kd2 {[%clk 0:00:12.7]} 1-0

[Event "Early-Titled-Tuesday-Blitz-April-02-2024"]
[Site "Chess.com"]
[Date "2024.04.02"]
[Round "4"]
[White "Keeper0416"]
[Black "Rurep26"]
[Result "0-1"]
[WhiteElo "2557"]
[BlackElo "2722"]
[TimeControl "180+1"]
[EndTime "8:39:04 PDT"]
[Termination "Rurep26 won on time"]

1. d4 {[%clk 0:02:57]} 1... Nf6 {[%clk 0:02:57.9]} 2. c4 {[%clk 0:02:53.7]} 2...
e6 {[%clk 0:02:58.4]} 3. Nf3 {[%clk 0:02:50]} 3... b6 {[%clk 0:02:55.8]} 4. g3
{[%clk 0:02:49.2]} 4... Ba6 {[%clk 0:02:55.6]} 5. Nbd2 {[%clk 0:02:48.1]} 5...
Bb7 {[%clk 0:02:54.3]} 6. Bg2 {[%clk 0:02:45.8]} 6... c5 {[%clk 0:02:54.6]} 7.
O-O {[%clk 0:02:42.5]} 7... cxd4 {[%clk 0:02:54.1]} 8. b3 {[%clk 0:02:39.5]}
8... Be7 {[%clk 0:02:52.5]} 9. Bb2 {[%clk 0:02:39.1]} 9... O-O {[%clk
0:02:52.7]} 10. Nxd4 {[%clk 0:02:38.6]} 10... Bxg2 {[%clk 0:02:51]} 11. Kxg2
{[%clk 0:02:39.5]} 11... d5 {[%clk 0:02:51]} 12. e3 {[%clk 0:02:36.7]} 12...
dxc4 {[%clk 0:02:43.5]} 13. Nxc4 {[%clk 0:02:37.6]} 13... Qd5+ {[%clk
0:02:43.4]} 14. Qf3 {[%clk 0:02:33.1]} 14... Qxf3+ {[%clk 0:02:39.4]} 15. Kxf3
{[%clk 0:02:33.3]} 15... Nbd7 {[%clk 0:02:28.2]} 16. Nc6 {[%clk 0:02:31.7]}
16... Rfe8 {[%clk 0:02:17.8]} 17. Rfd1 {[%clk 0:02:24.3]} 17... Bf8 {[%clk
0:02:14.2]} 18. e4 {[%clk 0:02:19.7]} 18... Rec8 {[%clk 0:02:08.9]} 19. Bxf6
{[%clk 0:02:00.5]} 19... Nxf6 {[%clk 0:02:06.4]} 20. N4e5 {[%clk 0:01:58.9]}
20... Rc7 {[%clk 0:01:56.5]} 21. b4 {[%clk 0:01:56.4]} 21... a6 {[%clk
0:01:49.2]} 22. a4 {[%clk 0:01:53.4]} 22... Rac8 {[%clk 0:01:49.1]} 23. b5
{[%clk 0:01:53.6]} 23... a5 {[%clk 0:01:48.3]} 24. Nc4 {[%clk 0:01:47.4]} 24...
Bc5 {[%clk 0:01:46.9]} 25. Rd3 {[%clk 0:01:40.1]} 25... g5 {[%clk 0:01:44.1]}
26. g4 {[%clk 0:01:36.9]} 26... Kg7 {[%clk 0:01:38]} 27. Rad1 {[%clk 0:01:35.2]}
27... h5 {[%clk 0:01:37.4]} 28. h3 {[%clk 0:01:30.2]} 28... hxg4+ {[%clk
0:01:36.6]} 29. hxg4 {[%clk 0:01:31.1]} 29... Rh8 {[%clk 0:01:36.2]} 30. N4e5
{[%clk 0:01:05.4]} 30... Rh3+ {[%clk 0:01:30.2]} 31. Kg2 {[%clk 0:00:50.4]}
31... Rxd3 {[%clk 0:01:24.4]} 32. Rxd3 {[%clk 0:00:51.3]} 32... Nxe4 {[%clk
0:01:24.6]} 33. f3 {[%clk 0:00:45.4]} 33... Nf6 {[%clk 0:01:23]} 34. Rd8 {[%clk
0:00:25.9]} 34... Nd5 {[%clk 0:01:21.5]} 35. Nd3 {[%clk 0:00:12.7]} 35... Be3
{[%clk 0:01:16.7]} 36. Kf1 {[%clk 0:00:05.5]} 36... Nc3 {[%clk 0:01:15.8]} 37.
Nb2 {[%clk 0:00:03.2]} 37... Bc1 {[%clk 0:01:12.8]} 38. Nc4 {[%clk 0:00:03.6]}
38... Nxa4 {[%clk 0:01:12.7]} 39. Rd1 {[%clk 0:00:03.6]} 39... Bb2 {[%clk
0:01:04.5]} 40. Rd2 {[%clk 0:00:02]} 40... Bf6 {[%clk 0:01:02]} 41. Ra2 {[%clk
0:00:02.6]} 41... Nc3 {[%clk 0:01:01.8]} 42. Rb2 {[%clk 0:00:01.9]} 42... Nxb5
{[%clk 0:00:58.8]} 43. Rxb5 {[%clk 0:00:02.8]} 43... Rxc6 {[%clk 0:00:59]} 44.
Nxb6 {[%clk 0:00:03.4]} 44... Rc1+ {[%clk 0:00:57.6]} 45. Ke2 {[%clk 0:00:03.3]}
45... Rc2+ {[%clk 0:00:58.1]} 46. Kd3 {[%clk 0:00:02.6]} 46... Rc3+ {[%clk
0:00:49.1]} 47. Ke2 {[%clk 0:00:02.6]} 47... Bd4 {[%clk 0:00:46.7]} 48. Na4
{[%clk 0:00:01.6]} 48... Re3+ {[%clk 0:00:46.3]} 0-1

[Event "Early-Titled-Tuesday-Blitz-April-02-2024"]
[Site "Chess.com"]
[Date "2024.04.02"]
[Round "4"]
[White "Quattroporte300"]
[Black "nekotyanof"]
[Result "0-1"]
[WhiteElo "2506"]
[BlackElo "2674"]
[TimeControl "180+1"]
[EndTime "8:39:08 PDT"]
[Termination "nekotyanof won by resignation"]

1. e4 {[%clk 0:03:00.9]} 1... c5 {[%clk 0:02:59.7]} 2. Nf3 {[%clk 0:03:00.6]}
2... d6 {[%clk 0:02:56]} 3. d4 {[%clk 0:03:00.6]} 3... cxd4 {[%clk 0:02:56.5]}
4. Nxd4 {[%clk 0:03:01.5]} 4... Nf6 {[%clk 0:02:57.2]} 5. Nc3 {[%clk 0:03:01.9]}
5... a6 {[%clk 0:02:57.8]} 6. Be3 {[%clk 0:03:00.4]} 6... e5 {[%clk 0:02:57.3]}
7. Nb3 {[%clk 0:03:00]} 7... Be7 {[%clk 0:02:57]} 8. f3 {[%clk 0:02:58.5]} 8...
Be6 {[%clk 0:02:55.5]} 9. Qd2 {[%clk 0:02:58.6]} 9... h5 {[%clk 0:02:55.7]} 10.
O-O-O {[%clk 0:02:58.3]} 10... h4 {[%clk 0:02:50.3]} 11. Nd5 {[%clk 0:02:56.2]}
11... Bxd5 {[%clk 0:02:41]} 12. exd5 {[%clk 0:02:55.6]} 12... Nbd7 {[%clk
0:02:40.6]} 13. Kb1 {[%clk 0:02:49.7]} 13... Qc7 {[%clk 0:02:37.6]} 14. c4
{[%clk 0:02:46.6]} 14... e4 {[%clk 0:02:22.6]} 15. f4 {[%clk 0:02:35.6]} 15...
Ng4 {[%clk 0:02:15.4]} 16. Be2 {[%clk 0:02:22.4]} 16... Nxe3 {[%clk 0:02:12.6]}
17. Qxe3 {[%clk 0:02:23.3]} 17... f5 {[%clk 0:02:13.2]} 18. g4 {[%clk
0:02:20.9]} 18... g6 {[%clk 0:02:11.5]} 19. gxf5 {[%clk 0:02:17.5]} 19... gxf5
{[%clk 0:02:12.4]} 20. Nd4 {[%clk 0:02:16.7]} 20... Qb6 {[%clk 0:02:02.7]} 21.
Qd2 {[%clk 0:01:59.9]} 21... O-O-O {[%clk 0:02:00.5]} 22. Nxf5 {[%clk
0:01:56.1]} 22... Bf6 {[%clk 0:02:00.4]} 23. Nd4 {[%clk 0:01:54.7]} 23... e3
{[%clk 0:01:53.4]} 24. Qd3 {[%clk 0:01:42.1]} 24... Rde8 {[%clk 0:01:48.5]} 25.
b3 {[%clk 0:01:37.3]} 25... Bxd4 {[%clk 0:01:43.9]} 26. Qxd4 {[%clk 0:01:37.3]}
26... Qxd4 {[%clk 0:01:44.8]} 27. Rxd4 {[%clk 0:01:37.7]} 27... Rhg8 {[%clk
0:01:45.7]} 28. Bf3 {[%clk 0:01:13.1]} 28... e2 {[%clk 0:01:36.1]} 29. Re1
{[%clk 0:01:13.1]} 29... Re3 {[%clk 0:01:36.6]} 30. Bxe2 {[%clk 0:01:03.8]}
30... Rg2 {[%clk 0:01:34.3]} 31. Rd2 {[%clk 0:01:01.5]} 31... Nf6 {[%clk
0:01:32.8]} 32. Kc1 {[%clk 0:00:39.8]} 32... Kc7 {[%clk 0:01:30.9]} 33. Kd1
{[%clk 0:00:39.6]} 33... Ne4 {[%clk 0:01:29.1]} 34. Rc2 {[%clk 0:00:36.3]} 34...
Rxh2 {[%clk 0:01:22.3]} 35. b4 {[%clk 0:00:35.5]} 35... Rf2 {[%clk 0:01:17.9]}
36. c5 {[%clk 0:00:35.5]} 36... h3 {[%clk 0:01:17.8]} 37. c6 {[%clk 0:00:24.1]}
37... h2 {[%clk 0:01:14.2]} 38. cxb7+ {[%clk 0:00:24.3]} 38... Kxb7 {[%clk
0:01:15.1]} 39. Rh1 {[%clk 0:00:18.1]} 39... Rexe2 {[%clk 0:01:01.6]} 40. Rxe2
{[%clk 0:00:17.6]} 40... Nc3+ {[%clk 0:01:02.1]} 41. Kd2 {[%clk 0:00:13.4]}
41... Nxe2 {[%clk 0:01:01.9]} 42. Ke3 {[%clk 0:00:14.1]} 42... Rg2 {[%clk
0:00:27.7]} 43. Kf3 {[%clk 0:00:13.7]} 43... Rg1 {[%clk 0:00:28.1]} 44. Rxh2
{[%clk 0:00:13.5]} 44... Nd4+ {[%clk 0:00:28.4]} 45. Ke4 {[%clk 0:00:10.3]}
45... Nb5 {[%clk 0:00:28.1]} 46. Rc2 {[%clk 0:00:09.4]} 46... Re1+ {[%clk
0:00:26.7]} 47. Kf3 {[%clk 0:00:08.9]} 47... Nd4+ {[%clk 0:00:26.7]} 48. Kf2
{[%clk 0:00:08.7]} 48... Nxc2 {[%clk 0:00:27.6]} 49. f5 {[%clk 0:00:07.9]} 49...
Re5 {[%clk 0:00:28.2]} 0-1